bitfinex/quotes_BTCUSD_20251029
["timestamp","ask_amount","ask_price","bid_price","bid_amount"]
[1761715096748,0.00041219,113140.0,113130.0,0.68450252]
[1761715097370,0.00041219,113140.0,113130.0,0.31296677]
[1761715097582,0.00041219,113140.0,113130.0,0.68450252]
[1761715097980,0.00041219,113140.0,113130.0,1.05603827]
[1761715098761,0.00041219,113140.0,113130.0,1.0825846]
[1761715099003,0.00041219,113140.0,113130.0,0.68450252]
[1761715099183,0.00041219,113140.0,113130.0,1.05603827]
[1761715099383,0.00041219,113140.0,113130.0,1.05803827]
[1761715100413,0.00041219,113140.0,113130.0,1.05903827]
[1761715100809,0.00041219,113140.0,113130.0,1.05703827]
[1761715101032,0.00041219,113140.0,113130.0,1.06003827]
[1761715101243,0.00041219,113140.0,113130.0,0.68850252]
[1761715102427,0.17718433,113140.0,113130.0,0.68850252]
[1761715102638,0.00041219,113140.0,113130.0,0.77250252]
[1761715103075,0.17718433,113140.0,113130.0,0.77250252]
[1761715103501,0.00041219,113140.0,113130.0,0.14017901]
[1761715103729,0.17718433,113140.0,113130.0,0.68850252]
[1761715104158,0.17718433,113140.0,113130.0,0.14017901]
[1761715104598,0.19568433,113140.0,113130.0,0.11223901]
[1761715105208,0.19568433,113140.0,113130.0,0.14017901]
[1761715105553,0.17718433,113140.0,113130.0,0.14017901]
[1761715105749,0.19568433,113140.0,113130.0,0.14017901]
[1761715105953,0.19568433,113140.0,113130.0,0.11223901]
[1761715106174,0.59566008,113140.0,113130.0,0.004]
[1761715106374,0.93566008,113140.0,113130.0,0.004]
[1761715106628,0.9812578,113140.0,113130.0,0.004]
[1761715106779,0.9812578,113140.0,113130.0,0.003]
[1761715106975,0.17680339,113120.0,113110.0,0.01275562]
[1761715107221,0.19530339,113120.0,113110.0,0.12099463]
[1761715107563,0.22374339,113120.0,113110.0,0.08990463]
[1761715107773,0.17681902,113110.0,113100.0,0.01379]
[1761715107972,0.20251412,113110.0,113100.0,0.12202901]
[1761715108588,0.17696412,113110.0,113100.0,0.14996901]
[1761715109200,0.0001451,113110.0,113100.0,0.71602287]
[1761715109413,0.0001451,113110.0,113100.0,1.06987516]
[1761715109621,0.0001451,113110.0,113100.0,0.69833941]
[1761715110868,0.0001451,113110.0,113100.0,0.70033941]
[1761715111288,0.0001451,113110.0,113100.0,0.97764529]
[1761715112111,0.0001451,113110.0,113100.0,1.09790757]
[1761715112530,0.0001451,113110.0,113100.0,1.12445973]
[1761715112743,0.0001451,113110.0,113100.0,1.47445972]
[1761715113388,0.0001451,113110.0,113100.0,1.47245972]
[1761715113593,0.0001451,113110.0,113100.0,1.47445972]
[1761715113801,0.0001451,113110.0,113100.0,1.54202632]
[1761715114006,0.0001451,113110.0,113100.0,1.54002632]
[1761715114209,0.0001451,113110.0,113100.0,0.69935582]
[1761715114424,0.0001451,113110.0,113100.0,1.43227745]
[1761715115083,0.0001451,113110.0,113100.0,1.46845973]
[1761715115305,0.0001451,113110.0,113100.0,1.46945973]
[1761715115837,0.0001451,113110.0,113100.0,0.8206181]
[1761715116040,0.0001451,113110.0,113100.0,0.7365381]
[1761715116240,0.0001451,113110.0,113100.0,0.8206581]
[1761715116447,0.0001451,113110.0,113100.0,0.78447582]
[1761715116794,0.0001451,113110.0,113100.0,1.43331745]
[1761715117179,0.0001451,113110.0,113100.0,0.78447582]
[1761715118172,0.0001451,113110.0,113100.0,1.43331745]
[1761715118381,0.0001451,113110.0,113100.0,1.46949973]
[1761715120453,0.0001451,113110.0,113100.0,0.8206581]
[1761715120832,0.0001451,113110.0,113100.0,1.46949973]
[1761715121027,0.0001451,113110.0,113100.0,1.47949972]
[1761715123475,0.0001451,113110.0,113100.0,1.46949973]
[1761715128028,0.0001451,113110.0,113100.0,1.43331745]
[1761715128690,0.0001451,113110.0,113100.0,0.35935582]
[1761715129461,0.0001451,113110.0,113100.0,0.33280366]
[1761715129827,0.0001451,113110.0,113100.0,0.32680366]
[1761715130033,0.0001451,113110.0,113100.0,0.32780366]
[1761715130280,0.0001451,113110.0,113100.0,0.33280366]
[1761715130442,0.0001451,113110.0,113100.0,0.32780366]
[1761715130802,0.0001451,113110.0,113100.0,0.97564529]
[1761715131051,0.0001451,113110.0,113100.0,0.97964529]
[1761715131933,0.0001451,113110.0,113100.0,1.04238102]
[1761715132622,0.0001451,113110.0,113100.0,1.38238102]
[1761715132864,0.0001451,113110.0,113100.0,1.38938101]
[1761715133290,0.0001451,113110.0,113100.0,1.39338101]
[1761715133511,0.0001451,113110.0,113100.0,1.38938101]
[1761715133824,0.0001451,113110.0,113100.0,1.39438101]
[1761715133997,0.0001451,113110.0,113100.0,1.39338101]
[1761715134174,0.0001451,113110.0,113100.0,1.38838101]
[1761715134382,0.0001451,113110.0,113100.0,1.38938101]
[1761715134586,0.0001451,113110.0,113100.0,1.39538101]
[1761715134761,0.0001451,113110.0,113100.0,1.38538102]
[1761715141431,0.0001451,113110.0,113100.0,1.26431485]
[1761715142619,0.0001451,113110.0,113100.0,0.70035711]
[1761715142849,0.0001451,113110.0,113100.0,1.31213257]
[1761715144233,0.0001451,113110.0,113100.0,1.34831485]
[1761715145119,0.0001451,113110.0,113100.0,0.83053938]
[1761715145339,0.0001451,113110.0,113100.0,1.8860903]
[1761715146705,0.0001451,113110.0,113100.0,1.8850903]
[1761715146992,0.0001451,113110.0,113100.0,1.8790903]
[1761715147211,0.0001451,113110.0,113100.0,1.8860903]
[1761715147429,0.0001451,113110.0,113100.0,1.8800903]
[1761715147850,0.0001451,113110.0,113100.0,1.8880903]
[1761715148058,0.0001451,113110.0,113100.0,1.95090669]
[1761715148482,0.0001451,113110.0,113100.0,1.8880903]
[1761715148695,0.0001451,113110.0,113100.0,1.94990669]
[1761715148916,0.0001451,113110.0,113100.0,1.95190669]
[1761715149363,0.0001451,113110.0,113100.0,1.8890903]
[1761715151938,0.0001451,113110.0,113100.0,2.09820669]
[1761715153045,0.19202617,113150.0,113140.0,0.17677214]
[1761715153324,0.19217136,113150.0,113140.0,0.29386115]
[1761715153540,0.01541263,113150.0,113140.0,0.31937115]
[1761715153750,0.01541263,113150.0,113140.0,0.84714661]
[1761715154834,0.01541263,113150.0,113140.0,0.32137115]
[1761715155061,0.01541263,113150.0,113140.0,0.002]
[1761715155062,1.1119646,113150.0,113140.0,0.002]
[1761715155278,1.13931343,113150.0,113140.0,0.002]
[1761715155485,0.98322213,113150.0,113140.0,0.002]
[1761715155696,1.00977544,113150.0,113140.0,0.002]
[1761715156548,0.17680339,113120.0,113110.0,0.59357263]
[1761715156750,0.17680339,113120.0,113110.0,0.68339164]
[1761715156923,0.17680339,113120.0,113110.0,0.69994164]
[1761715158018,0.17680339,113120.0,113110.0,0.70294164]
[1761715158235,0.17680339,113120.0,113110.0,0.70394164]
[1761715158682,0.17680339,113120.0,113110.0,0.33225748]
[1761715158886,0.17680339,113120.0,113110.0,0.70394164]
[1761715159312,0.17680339,113120.0,113110.0,0.33225748]
[1761715159547,0.17680339,113120.0,113110.0,0.70394164]
[1761715159762,0.17678776,113130.0,113110.0,0.70394164]
[1761715159971,0.17678776,113130.0,113120.0,0.13187901]
[1761715160391,0.19309776,113130.0,113120.0,0.50356317]
[1761715160598,0.19309776,113130.0,113120.0,0.47805317]
[1761715160799,0.20529776,113130.0,113120.0,0.10636901]
[1761715161241,0.23008776,113130.0,113120.0,0.10836901]
[1761715161650,0.20529776,113130.0,113120.0,0.10836901]
[1761715162067,0.17678776,113130.0,113120.0,0.12604934]
[1761715162316,0.17678776,113130.0,113120.0,0.32836273]
[1761715162551,0.17678776,113130.0,113120.0,0.3106824]
[1761715162961,0.17678776,113130.0,113120.0,0.13387901]
[1761715164262,0.19012192,113130.0,113120.0,0.10836901]
[1761715164897,0.19012192,113130.0,113120.0,0.2851724]
[1761715165106,0.17381192,113130.0,113120.0,0.2851724]
[1761715165325,0.02655307,113140.0,113130.0,0.17678776]
[1761715165547,0.1923813,113150.0,113140.0,0.17677214]
[1761715165756,0.1923813,113150.0,113140.0,0.28314115]
[1761715166196,0.2086913,113150.0,113140.0,0.28314115]
[1761715166617,0.2206413,113150.0,113140.0,0.28314115]
[1761715167245,0.2206413,113150.0,113140.0,0.10636901]
[1761715167450,0.2043313,113150.0,113140.0,0.13187901]
[1761715167657,0.2206413,113150.0,113140.0,0.10636901]
[1761715168502,0.2206413,113150.0,113140.0,0.28314115]
[1761715168934,0.2206413,113150.0,113140.0,0.10636901]
[1761715169143,0.2454313,113150.0,113140.0,0.08981901]
[1761715169552,0.2206413,113150.0,113140.0,0.10636901]
[1761715173824,0.2208913,113150.0,113140.0,0.28314115]
[1761715174035,0.2208913,113150.0,113140.0,0.10636901]
[1761715174444,0.2208913,113150.0,113140.0,0.13187901]
[1761715174678,0.2208913,113150.0,113140.0,0.10636901]
[1761715175366,0.2456813,113150.0,113140.0,0.10636901]
[1761715175573,0.17677214,113140.0,113120.0,0.20231339]
[1761715175776,0.19308214,113140.0,113130.0,0.10636901]
[1761715176644,0.19308214,113140.0,113130.0,0.11811901]
[1761715176873,0.17677214,113140.0,113130.0,0.32241677]
[1761715177297,0.19418214,113140.0,113130.0,0.29690677]
[1761715179927,0.24035912,113150.0,113130.0,0.29690677]
[1761715179928,0.19238166,113150.0,113130.0,0.85061662]
[1761715180127,0.19238166,113150.0,113140.0,0.01754]
[1761715180331,0.24891166,113150.0,113140.0,0.08981901]
[1761715182347,0.24891166,113150.0,113140.0,0.10735901]
[1761715182560,0.22197166,113150.0,113140.0,0.10735901]
[1761715182762,0.22197166,113150.0,113140.0,0.28413115]
[1761715182973,0.22197166,113150.0,113140.0,0.65564014]
[1761715183181,0.19238166,113150.0,113140.0,0.68143014]
[1761715183609,0.01562479,113150.0,113140.0,0.68143014]
[1761715184233,0.01562479,113150.0,113140.0,0.66555014]
[1761715185087,0.01562479,113150.0,113140.0,1.03705913]
[1761715185318,0.01562479,113150.0,113140.0,0.29404115]
[1761715185531,0.01562479,113150.0,113140.0,0.66555014]
[1761715186505,0.01562479,113150.0,113140.0,0.66755014]
[1761715186703,0.01562479,113150.0,113140.0,1.03905913]
[1761715187715,0.01562479,113150.0,113140.0,0.29604115]
[1761715187922,0.01562479,113150.0,113140.0,0.66755014]
[1761715188731,0.1923813,113150.0,113140.0,0.66755014]
[1761715188959,0.01562479,113150.0,113140.0,0.66755014]
[1761715191412,0.01562479,113150.0,113140.0,0.29604115]
[1761715191650,0.01562479,113150.0,113140.0,0.66755014]
[1761715191866,0.01562479,113150.0,113140.0,0.29604115]
[1761715192074,0.01562479,113150.0,113140.0,0.66755014]
[1761715192967,0.1923813,113150.0,113140.0,0.29604115]
[1761715193183,0.2097913,113150.0,113140.0,0.64176014]
[1761715193395,0.03303479,113150.0,113140.0,0.64176014]
[1761715193605,0.01562479,113150.0,113140.0,0.66755014]
[1761715193819,0.1923813,113150.0,113140.0,0.66755014]
[1761715194249,0.01562479,113150.0,113140.0,0.67445014]
[1761715194659,0.01562479,113150.0,113140.0,0.30294115]
[1761715194874,0.01562479,113150.0,113140.0,1.04595913]
[1761715196807,0.1923813,113150.0,113140.0,0.67445014]
[1761715197022,0.01562479,113150.0,113140.0,0.67445014]
[1761715199582,0.01562479,113150.0,113140.0,1.04595913]
[1761715200961,0.01562479,113150.0,113140.0,0.67445014]
[1761715202535,0.01562479,113150.0,113140.0,1.04595913]
[1761715203403,0.01562479,113150.0,113140.0,0.67436966]
[1761715210467,0.01562479,113150.0,113140.0,1.08198045]
[1761715210678,0.01562479,113150.0,113140.0,0.71055194]
[1761715211320,0.01562479,113150.0,113140.0,0.70855194]
[1761715211759,0.01562479,113150.0,113140.0,0.71255194]
[1761715212005,0.57972981,113150.0,113140.0,0.08483901]
[1761715212229,0.2453513,113150.0,113140.0,0.08483901]
[1761715212448,0.2453513,113150.0,113140.0,0.07793901]
[1761715212675,0.61677981,113150.0,113140.0,0.07793901]
[1761715212902,0.61677981,113150.0,113140.0,0.07693901]
[1761715213129,0.61677981,113150.0,113140.0,0.003]
[1761715213986,0.17677214,113140.0,113130.0,0.01175]
[1761715214198,0.21764214,113140.0,113130.0,0.10156901]
[1761715214411,0.58907065,113140.0,113130.0,0.08981901]
[1761715215699,0.58907065,113140.0,113130.0,0.09181901]
[1761715216336,0.57362028,113140.0,113130.0,0.09181901]
[1761715216547,0.20219177,113140.0,113130.0,0.09181901]
[1761715216766,0.57362028,113140.0,113130.0,0.09181901]
[1761715216989,0.57362028,113140.0,113130.0,20.08981901]
[1761715217199,0.20219177,113140.0,113130.0,20.08981901]
[1761715217759,0.57362028,113140.0,113130.0,20.08981901]
[1761715218395,0.91362028,113140.0,113130.0,20.08981901]
[1761715218611,0.91362028,113140.0,113130.0,20.0]
[1761715218829,0.94096661,113140.0,113130.0,20.0]
[1761715219265,0.93268984,113140.0,113130.0,20.0]
[1761715219485,0.93268188,113140.0,113130.0,20.0]
[1761715219699,0.51724177,113140.0,113130.0,20.0]
[1761715219923,0.51724177,113140.0,113130.0,20.01227]
[1761715221031,0.51724177,113140.0,113130.0,20.10208901]
[1761715221233,0.51677214,113140.0,113130.0,20.12610901]
[1761715221656,0.17677214,113140.0,113130.0,20.12610901]
[1761715222136,0.17677214,113140.0,113130.0,20.49753752]
[1761715222355,0.17677214,113140.0,113130.0,20.30289677]
[1761715222535,0.1923813,113150.0,113130.0,20.67432528]
[1761715222772,0.1923813,113150.0,113140.0,0.13020901]
[1761715222988,0.1923813,113150.0,113140.0,0.08981901]
[1761715223238,0.2332513,113150.0,113140.0,0.08981901]
[1761715223840,0.60467981,113150.0,113140.0,0.08981901]
[1761715224374,0.2332513,113150.0,113140.0,0.08981901]
[1761715227178,0.2083013,113150.0,113140.0,0.13020901]
[1761715227379,0.2083013,113150.0,113140.0,0.10618901]
[1761715229002,0.1923813,113150.0,113140.0,0.13020901]
[1761715229827,0.2083013,113150.0,113140.0,0.13020901]
[1761715230242,0.1923813,113150.0,113140.0,0.14788622]
[1761715231482,0.1923813,113150.0,113140.0,0.13020901]
[1761715233207,0.1923813,113150.0,113140.0,0.32465836]
[1761715233404,0.1923813,113150.0,113140.0,0.30698115]
[1761715233836,0.01562479,113150.0,113140.0,0.67840966]
[1761715234248,0.01562479,113150.0,113140.0,0.30698115]
[1761715234691,0.01562479,113150.0,113140.0,0.30898115]
[1761715234900,0.01562479,113150.0,113140.0,0.30698115]
[1761715235316,0.1923813,113150.0,113140.0,0.30998115]
[1761715235769,0.01562479,113150.0,113140.0,0.30998115]
[1761715235976,0.01562479,113150.0,113140.0,0.68140966]
[1761715236176,0.01562479,113150.0,113140.0,0.71759194]
[1761715236596,0.01562479,113150.0,113140.0,0.68240966]
[1761715236806,0.01562479,113150.0,113140.0,0.31098115]
[1761715237456,0.1923813,113150.0,113140.0,0.31098115]
[1761715238313,0.01562479,113150.0,113140.0,0.31098115]
[1761715239049,0.1923813,113150.0,113140.0,0.31098115]
[1761715240306,0.1923813,113150.0,113140.0,0.13420901]
[1761715241174,0.1923813,113150.0,113140.0,0.14212901]
[1761715241600,0.1923813,113150.0,113140.0,0.31890115]
[1761715242645,0.1923813,113150.0,113140.0,0.14212901]
[1761715243068,0.1923813,113150.0,113140.0,0.31890115]
[1761715246504,0.1923813,113150.0,113140.0,0.14212901]
[1761715246707,0.59114981,113150.0,113140.0,0.11810901]
[1761715246907,0.61578981,113150.0,113140.0,0.09381901]
[1761715247868,0.2443613,113150.0,113140.0,0.11113901]
[1761715248079,0.01562479,113150.0,113140.0,0.53834473]
[1761715248280,0.1923813,113150.0,113140.0,0.14923901]
[1761715248490,0.1923813,113150.0,113140.0,0.34368836]
[1761715248691,0.1923813,113150.0,113140.0,0.13339901]
[1761715249474,0.1923813,113150.0,113140.0,0.31017115]
[1761715250158,0.19149748,113150.0,113140.0,0.31017115]
[1761715252262,0.20787748,113150.0,113140.0,0.31017115]
[1761715252817,0.21883748,113150.0,113140.0,0.10838901]
[1761715253025,0.21883748,113150.0,113140.0,0.28516115]
[1761715253766,0.21883748,113150.0,113140.0,0.31017115]
[1761715253940,0.21883748,113150.0,113140.0,0.10838901]
[1761715254153,0.21883748,113150.0,113140.0,5.06595401]
[1761715254350,0.61490599,113150.0,113140.0,5.03554401]
[1761715254755,0.24347748,113150.0,113140.0,5.03554401]
[1761715255353,0.61490599,113150.0,113140.0,5.03554401]
[1761715256165,0.61490599,113150.0,113140.0,5.03454401]
[1761715256620,0.61490599,113150.0,113140.0,5.03154401]
[1761715257765,0.24347748,113150.0,113140.0,5.03154401]
[1761715257975,0.61490599,113150.0,113140.0,5.03154401]
[1761715258867,0.24347748,113150.0,113140.0,5.03154401]
[1761715259091,0.61490599,113150.0,113140.0,5.03154401]
[1761715259283,0.95490599,113150.0,113140.0,5.03154401]
[1761715259513,0.97399019,113150.0,113140.0,4.957565]
[1761715259773,0.98227356,113150.0,113140.0,4.957565]
[1761715261337,0.61084505,113150.0,113140.0,4.957565]
[1761715261553,0.98227356,113150.0,113140.0,4.957565]
[1761715262387,0.61084505,113150.0,113140.0,4.957565]
[1761715262596,0.61084505,113150.0,113140.0,4.987975]
[1761715262597,0.58620505,113150.0,113140.0,4.987975]
[1761715263026,0.61084505,113150.0,113140.0,4.970655]
[1761715263228,0.98227356,113150.0,113140.0,4.957565]
[1761715263640,0.61084505,113150.0,113140.0,4.957565]
[1761715265019,0.98227356,113150.0,113140.0,4.957565]
[1761715265200,0.97399019,113150.0,113140.0,4.957565]
[1761715265398,0.97413897,113150.0,113140.0,4.957565]
[1761715266566,0.95505477,113150.0,113140.0,4.957565]
[1761715268273,0.55883748,113150.0,113140.0,5.07472401]
[1761715268484,0.55883748,113150.0,113140.0,5.09781401]
[1761715268725,0.21883748,113150.0,113140.0,5.09781401]
[1761715270915,0.19149748,113150.0,113140.0,5.64616344]
[1761715271353,0.01474097,113150.0,113140.0,5.64616344]
[1761715271574,0.01474097,113150.0,113140.0,6.01774073]
[1761715271802,0.01474097,113150.0,113140.0,5.64616344]
[1761715272020,0.19149748,113150.0,113140.0,5.64616344]
[1761715273125,0.01474097,113150.0,113140.0,5.64616344]
[1761715273340,0.01474097,113150.0,113140.0,5.64916344]
[1761715273767,0.01474097,113150.0,113140.0,6.10446073]
[1761715274242,0.01474097,113150.0,113140.0,6.5122203]
[1761715274459,0.01474097,113150.0,113140.0,6.14164301]
[1761715275303,0.61456216,113190.0,113160.0,0.17672856]
[1761715275512,0.18558993,113180.0,113170.0,0.10498901]
[1761715275716,0.18558993,113180.0,113170.0,0.11685901]
[1761715275922,0.18558993,113180.0,113170.0,0.29358429]
[1761715276124,0.18622622,113180.0,113170.0,0.29358429]
[1761715276961,0.20289622,113180.0,113170.0,0.11685901]
[1761715277590,0.20289622,113180.0,113170.0,0.14054901]
[1761715279058,0.20289622,113180.0,113170.0,0.11685901]
[1761715279651,0.20289622,113180.0,113170.0,0.14054901]
[1761715279885,0.18622622,113180.0,113170.0,0.14054901]
[1761715280073,0.20289622,113180.0,113170.0,0.14054901]
[1761715280204,0.20289622,113180.0,113170.0,0.11685901]
[1761715281463,0.20289622,113180.0,113170.0,0.29358429]
[1761715281672,0.20289622,113180.0,113170.0,0.31727429]
[1761715281890,0.18622622,113180.0,113170.0,0.31727429]
[1761715282973,0.20289622,113180.0,113170.0,0.31727429]
[1761715283190,0.20289622,113180.0,113170.0,0.14054901]
[1761715284030,0.20289622,113180.0,113170.0,0.31727429]
[1761715284686,0.20289622,113180.0,113170.0,0.14054901]
[1761715284914,0.20289622,113180.0,113170.0,0.31727429]
[1761715285201,0.18622622,113180.0,113170.0,0.31727429]
[1761715285626,0.00063629,113180.0,113170.0,1.06042887]
[1761715285836,0.00063629,113180.0,113170.0,0.68885158]
[1761715286048,0.00063629,113180.0,113170.0,0.69385158]
[1761715286871,0.00063629,113180.0,113170.0,0.32227429]
[1761715287081,0.00063629,113180.0,113170.0,0.69385158]
[1761715287492,0.00063629,113180.0,113170.0,0.34881231]
[1761715287705,0.00063629,113180.0,113170.0,0.7203896]
[1761715289134,0.20307028,113190.0,113180.0,0.20374966]
[1761715289332,0.18640028,113190.0,113180.0,0.29356867]
[1761715289535,0.20307028,113190.0,113180.0,0.11685901]
[1761715289978,0.20307028,113190.0,113180.0,0.29356867]
[1761715290180,0.57464757,113190.0,113180.0,0.11685901]
[1761715290604,0.59938757,113190.0,113180.0,0.08981901]
[1761715291431,0.20307028,113190.0,113180.0,0.10498901]
[1761715291639,0.20307028,113190.0,113180.0,0.11685901]
[1761715292268,0.22781028,113190.0,113180.0,0.08981901]
[1761715293260,0.18640028,113190.0,113180.0,0.11685901]
[1761715293429,0.55797757,113190.0,113180.0,0.11685901]
[1761715293634,0.57464757,113190.0,113180.0,0.11685901]
[1761715294526,0.57464757,113190.0,113180.0,0.10168901]
[1761715294664,0.59959962,113190.0,113180.0,0.10168901]
[1761715294866,0.59959962,113190.0,113180.0,0.08981901]
[1761715295067,0.17670966,113180.0,113170.0,0.005]
[1761715295270,0.58969695,113180.0,113170.0,0.09481901]
[1761715297043,0.56495695,113180.0,113170.0,0.12362901]
[1761715297471,1.67213153,113180.0,113170.0,0.005]
[1761715297677,1.68038805,113180.0,113170.0,0.005]
[1761715297909,1.35438306,113180.0,113170.0,0.005]
[1761715298116,1.35438306,113180.0,113160.0,0.00079568]
[1761715298338,1.30097986,113170.0,113160.0,0.00079568]
[1761715298609,1.3282619,113170.0,113160.0,0.00079568]
[1761715301347,1.3345419,113170.0,113160.0,0.00079568]
[1761715305042,0.96296461,113170.0,113160.0,0.00079568]
[1761715305860,0.59138732,113170.0,113160.0,0.00079568]
[1761715306094,0.96296461,113170.0,113160.0,0.00079568]
[1761715306516,0.59138732,113170.0,113160.0,0.00079568]
[1761715306729,0.96296461,113170.0,113160.0,0.00079568]
[1761715308862,0.59138732,113170.0,113160.0,0.00079568]
[1761715309108,0.96296461,113170.0,113160.0,0.00079568]
[1761715309383,0.94393909,113170.0,113160.0,0.00079568]
[1761715309608,0.52300528,113170.0,113160.0,0.14499469]
[1761715309828,0.91166257,113170.0,113160.0,0.14499469]
[1761715310058,0.91166257,113170.0,113160.0,0.11942469]
[1761715311180,0.54008528,113170.0,113160.0,0.11942469]
[1761715311696,0.56410528,113170.0,113160.0,0.09061469]
[1761715313599,0.93568257,113170.0,113160.0,0.09061469]
[1761715314295,0.93568257,113170.0,113160.0,0.00079568]
[1761715321129,0.93568257,113170.0,113160.0,0.10720469]
[1761715321130,0.54008528,113170.0,113160.0,0.10720469]
[1761715321342,0.51672528,113170.0,113160.0,0.14499469]
[1761715323601,0.18298966,113180.0,113160.0,1.06489016]
[1761715323777,0.52497812,113180.0,113170.0,0.4824863]
[1761715323984,0.51670966,113180.0,113170.0,0.5080563]
[1761715324466,0.51670966,113180.0,113170.0,0.13647901]
[1761715326463,0.17670966,113180.0,113170.0,0.13647901]
[1761715328374,0.19675966,113180.0,113170.0,0.13647901]
[1761715329200,0.18147966,113180.0,113170.0,0.13647901]
[1761715331208,0.17670966,113180.0,113170.0,0.31320429]
[1761715331675,0.17670966,113180.0,113170.0,0.13647901]
[1761715332551,0.17670966,113180.0,113170.0,0.31320429]
[1761715333578,0.17670966,113180.0,113170.0,0.13647901]
[1761715334017,0.17670966,113180.0,113170.0,0.31320429]
[1761715334928,0.17670966,113180.0,113170.0,0.6844941]
[1761715335138,0.17670966,113180.0,113170.0,0.31320429]
[1761715338282,0.17670966,113180.0,113170.0,0.13647901]
[1761715339117,0.17670966,113180.0,113170.0,0.31320429]
[1761715340858,0.19224966,113180.0,113170.0,0.28763429]
[1761715341105,0.19701966,113180.0,113170.0,0.28763429]
[1761715341309,0.19701966,113180.0,113170.0,0.31245429]
[1761715341727,0.18147966,113180.0,113170.0,0.31245429]
[1761715343417,0.19701966,113180.0,113170.0,0.31245429]
[1761715343965,0.18147966,113180.0,113170.0,0.31245429]
[1761715344378,0.00477,113180.0,113170.0,0.31245429]
[1761715344606,0.18147966,113180.0,113170.0,0.31245429]
[1761715347326,0.17670966,113180.0,113170.0,0.31245429]
[1761715347941,0.56080118,113190.0,113170.0,0.31245429]
[1761715348151,0.17670966,113180.0,113170.0,0.31245429]
[1761715348359,0.20505137,113190.0,113180.0,0.01582]
[1761715348575,0.18951137,113190.0,113180.0,0.10563901]
[1761715348791,0.20505137,113190.0,113180.0,0.10563901]
[1761715349901,0.22914137,113190.0,113180.0,0.10563901]
[1761715350105,0.22914137,113190.0,113180.0,0.08981901]
[1761715352075,0.23742008,113190.0,113180.0,0.08981901]
[1761715353273,0.25650008,113190.0,113180.0,0.08981901]
[1761715353655,0.17670966,113180.0,113160.0,0.21629675]
[1761715353854,0.57685947,113180.0,113170.0,0.08981901]
[1761715354056,0.22110966,113180.0,113170.0,0.08981901]
[1761715355229,0.19701966,113180.0,113170.0,0.10563901]
[1761715355439,0.56830947,113180.0,113170.0,0.08981901]
[1761715355628,0.56830947,113180.0,113160.0,0.00079568]
[1761715355629,0.55290756,113170.0,113160.0,0.00079568]
[1761715355832,1.06971696,113170.0,113160.0,0.00079568]
[1761715356081,1.02142183,113170.0,113160.0,0.00079568]
[1761715357303,0.65013202,113170.0,113160.0,0.00079568]
[1761715357506,1.02142183,113170.0,113160.0,0.00079568]
[1761715358434,1.39271164,113170.0,113160.0,0.00079568]
[1761715359260,1.36889557,113170.0,113160.0,0.00079568]
[1761715360993,1.45871458,113170.0,113160.0,1e-08]
[1761715361211,1.48253065,113170.0,113160.0,1e-08]
[1761715361644,0.19318651,113150.0,113140.0,4.53609564]
[1761715361870,1.04897764,113150.0,113140.0,4.53609564]
[1761715362091,1.09165267,113150.0,113140.0,4.53609564]
[1761715362329,1.46294248,113150.0,113140.0,4.53609564]
[1761715362555,1.46294248,113150.0,113140.0,4.11782178]
[1761715362760,1.46294248,113150.0,113140.0,4.11830563]
[1761715363174,1.55576149,113150.0,113140.0,4.11830563]
[1761715363586,0.72336286,113150.0,113140.0,4.11830563]
[1761715363796,1.09465267,113150.0,113140.0,4.11830563]
[1761715363995,1.09457297,113150.0,113140.0,4.11830563]
[1761715365891,0.63346415,113150.0,113140.0,4.11830563]
[1761715366106,0.98574863,113150.0,113140.0,4.11830563]
[1761715366943,0.94130632,113150.0,113140.0,4.11830563]
[1761715367285,0.94130632,113150.0,113140.0,4.11872999]
[1761715367693,0.93830632,113150.0,113140.0,4.11872999]
[1761715367898,0.94030632,113150.0,113140.0,4.11872999]
[1761715368464,0.94030632,113150.0,113140.0,4.13472999]
[1761715368465,0.20542651,113150.0,113140.0,4.13472999]
[1761715368670,0.20642651,113150.0,113140.0,4.13472999]
[1761715368884,0.57771632,113150.0,113140.0,4.11872999]
[1761715369081,0.94030632,113150.0,113140.0,4.11872999]
[1761715369288,0.94130632,113150.0,113140.0,4.11872999]
[1761715369685,0.93930632,113150.0,113140.0,4.11872999]
[1761715369912,0.93830632,113150.0,113140.0,4.11872999]
[1761715371296,0.93830632,113150.0,113140.0,4.11972999]
[1761715372657,0.9744886,113150.0,113140.0,4.11972999]
[1761715374116,0.98272503,113150.0,113140.0,4.11972999]
[1761715374749,0.79710579,113150.0,113140.0,4.11972999]
[1761715374973,0.9738623,113150.0,113140.0,4.11972999]
[1761715379398,0.54280021,113150.0,113140.0,4.14777999]
[1761715379607,0.91409002,113150.0,113140.0,4.14777999]
[1761715380425,0.91409002,113150.0,113140.0,4.13177999]
[1761715380638,0.91409002,113150.0,113140.0,4.11972999]
[1761715380829,0.92549002,113150.0,113140.0,4.11972999]
[1761715382400,0.94450987,113150.0,113140.0,4.11972999]
[1761715382599,1.07051116,113150.0,113140.0,4.11972999]
[1761715382847,0.98069215,113150.0,113140.0,4.11972999]
[1761715384486,1.44180097,113150.0,113140.0,4.11972999]
[1761715384694,1.49728214,113150.0,113140.0,4.11972999]
[1761715384898,1.49005938,113150.0,113140.0,4.11872999]
[1761715385075,1.49105938,113150.0,113140.0,4.11872999]
[1761715385437,1.56322162,113150.0,113140.0,4.11872999]
[1761715385599,1.1602073,113150.0,113140.0,4.11872999]
[1761715386628,1.13568337,113150.0,113140.0,4.11872999]
[1761715387015,1.50697318,113150.0,113140.0,3.15337528]
[1761715387211,2.00574404,113150.0,113140.0,1.70920419]
[1761715387412,1.65027231,113150.0,113140.0,1.60755502]
[1761715387649,1.69986218,113150.0,113140.0,1.56994769]
[1761715387851,1.66126907,113150.0,113140.0,1.40687162]
[1761715388113,1.50015999,113150.0,113140.0,1.3222931]
[1761715388391,1.12987018,113150.0,113140.0,1.15328477]
[1761715388766,1.13887017,113150.0,113140.0,0.73822981]
[1761715388956,1.13887017,113150.0,113140.0,0.68157359]
[1761715389161,1.50015999,113150.0,113140.0,0.68157359]
[1761715389345,0.74758038,113150.0,113140.0,0.68157359]
[1761715389549,1.45932764,113150.0,113140.0,0.68157359]
[1761715390181,1.46832764,113150.0,113140.0,0.68157359]
[1761715390386,1.47132763,113150.0,113140.0,0.68157359]
[1761715390583,1.46932763,113150.0,113140.0,0.68157359]
[1761715390751,1.44996537,113150.0,113140.0,0.68157359]
[1761715390956,1.45096537,113150.0,113140.0,0.68157359]
[1761715391361,1.23547664,113150.0,113140.0,0.68157359]
[1761715391568,1.27165892,113150.0,113140.0,0.68157359]
[1761715392385,1.36147793,113150.0,113140.0,0.68157359]
[1761715392821,1.88951638,113150.0,113140.0,0.68157359]
[1761715393034,1.86569637,113150.0,113140.0,0.68157359]
[1761715394126,1.88951581,113150.0,113140.0,0.68157359]
[1761715394958,1.86569637,113150.0,113140.0,0.68157359]
[1761715395201,1.8922552,113150.0,113140.0,0.68157359]
[1761715395630,1.91607194,113150.0,113140.0,0.68157359]
[1761715397292,1.92403512,113150.0,113140.0,0.68157359]
[1761715397714,1.39599667,113150.0,113140.0,0.68157359]